bitfinex/quotes_ETHUSD_20250731
["timestamp","ask_amount","ask_price","bid_price","bid_amount"]
[1753928302787,0.27516005,3845.7,3842.7,4.25]
[1753928302993,0.03250383,3845.7,3842.7,4.25]
[1753928303881,0.03250468,3845.6,3842.7,4.25]
[1753928304080,0.03250468,3845.6,3842.0,4.25]
[1753928304677,0.24265731,3845.6,3842.0,4.25]
[1753928304881,30.0,3846.3,3842.0,4.25]
[1753928305220,30.0,3846.1,3842.0,4.25]
[1753928305402,0.48565008,3846.0,3842.0,4.25]
[1753928305583,0.24282504,3845.9,3842.0,4.25]
[1753928305878,0.24282504,3845.8,3842.0,4.25]
[1753928306083,0.24282504,3845.7,3842.0,4.25]
[1753928306295,0.24282504,3845.6,3842.0,4.25]
[1753928306475,0.24282504,3845.5,3842.0,4.25]
[1753928306674,0.24282504,3845.4,3842.0,4.25]
[1753928307053,0.002,3846.4,3842.0,4.25]
[1753928307194,0.24295995,3846.3,3842.1,4.25]
[1753928307395,0.4859199,3846.2,3842.1,4.25]
[1753928307570,0.24295995,3846.1,3842.1,4.25]
[1753928307769,0.24295995,3846.0,3842.1,4.25]
[1753928308067,0.24295995,3845.9,3842.1,4.25]
[1753928308266,0.24295995,3845.8,3842.1,4.25]
[1753928308504,0.002,3846.4,3842.1,4.25]
[1753928308704,0.24307739,3846.3,3842.1,4.25]
[1753928308914,0.24307739,3846.2,3842.1,4.25]
[1753928309208,0.24307739,3846.1,3842.1,4.25]
[1753928309408,0.24307739,3846.0,3842.1,4.25]
[1753928309607,0.24307739,3845.9,3842.1,4.25]
[1753928309808,0.24307739,3845.8,3842.1,4.25]
[1753928309975,0.24307739,3845.7,3842.1,4.25]
[1753928310174,0.002,3846.4,3842.1,4.25]
[1753928310375,0.24316932,3846.3,3842.1,4.25]
[1753928310577,0.24316932,3846.2,3842.1,4.25]
[1753928310780,0.24316932,3846.1,3842.1,4.25]
[1753928310987,0.24316932,3846.0,3842.1,4.25]
[1753928311311,0.24316932,3845.9,3842.1,4.25]
[1753928311515,0.24316932,3845.8,3842.1,4.25]
[1753928311696,0.24316932,3845.7,3842.1,4.25]
[1753928312027,0.03250468,3845.6,3842.1,4.25]
[1753928312220,0.5190108,3846.3,3842.2,4.25]
[1753928312516,0.48651204,3846.2,3842.2,4.25]
[1753928312701,0.51901249,3846.1,3842.2,4.25]
[1753928313019,0.48651204,3846.0,3842.2,4.25]
[1753928313215,0.51925199,3845.9,3842.2,4.25]
[1753928313428,0.24325602,3845.8,3842.2,4.25]
[1753928313726,0.24325602,3845.7,3842.2,4.25]
[1753928313883,2.45717007,3846.4,3842.2,4.25]
[1753928314088,30.0,3846.2,3842.3,4.25]
[1753928314384,0.48701476,3846.1,3842.3,4.25]
[1753928314725,0.48701476,3846.0,3842.3,4.25]
[1753928314884,0.48701476,3845.9,3842.3,4.25]
[1753928315088,0.51951775,3845.8,3842.3,4.25]
[1753928315385,0.48701476,3845.7,3842.3,4.25]
[1753928315590,0.51951944,3845.6,3842.3,4.25]
[1753928315819,0.24350738,3845.5,3842.4,4.25]
[1753928316127,0.24350738,3845.4,3842.4,4.25]
[1753928316329,0.24350738,3845.3,3842.4,4.25]
[1753928316631,0.24350738,3845.2,3842.4,4.25]
[1753928316825,0.24350738,3845.1,3842.4,4.25]
[1753928317003,0.27637993,3845.0,3842.4,4.25]
[1753928317327,0.24387018,3844.9,3842.4,4.25]
[1753928317621,0.03251144,3844.8,3842.4,4.25]
[1753928317822,2.35707359,3845.9,3842.5,4.25]
[1753928318026,0.24390441,3845.8,3842.6,4.25]
[1753928318226,0.03250383,3845.7,3842.6,4.25]
[1753928318639,0.24390717,3845.6,3842.6,4.25]
[1753928318819,30.0,3845.4,3842.0,0.13603199]
[1753928319023,0.48782753,3845.5,3842.0,0.13603199]
[1753928319328,0.24392024,3845.4,3842.0,0.13603199]
[1753928319536,0.24392026,3845.3,3842.0,0.13603199]
[1753928319716,0.48784062,3845.2,3842.0,0.13603199]
[1753928319915,0.24392031,3845.1,3842.0,0.13603199]
[1753928320120,0.48778765,3845.0,3842.0,0.13603199]
[1753928320410,0.24392031,3844.9,3842.0,0.13603199]
[1753928320607,0.24392031,3844.8,3842.0,0.13603199]
[1753928320808,0.24392031,3844.7,3842.0,0.13603199]
[1753928321115,0.24392031,3844.6,3842.0,0.13603199]
[1753928321322,0.24392031,3844.5,3842.0,0.13603199]
[1753928321533,0.24392031,3844.4,3842.0,0.13603199]
[1753928321746,30.0,3845.4,3842.0,0.13603199]
[1753928321908,0.51994361,3845.3,3842.0,0.13603199]
[1753928322236,0.4874364,3845.2,3842.0,0.13603199]
[1753928322441,0.5199453,3845.1,3842.0,0.13603199]
[1753928322642,0.4874364,3845.0,3842.0,0.13603199]
[1753928322842,0.27622879,3844.9,3842.0,0.13603199]
[1753928323043,0.2437182,3844.8,3842.0,0.13603199]
[1753928323243,0.2437182,3844.7,3842.0,0.13603199]
[1753928323442,0.2437182,3844.6,3842.0,0.13603199]
[1753928323627,0.2437182,3844.5,3842.0,0.13603199]
[1753928323939,0.2437182,3844.4,3842.0,0.13603199]
[1753928324138,0.27623387,3844.3,3841.9,0.001]
[1753928324339,0.03251567,3844.3,3841.9,0.001]
[1753928324544,30.0,3845.2,3841.9,0.001]
[1753928324743,0.51959363,3845.1,3841.9,0.001]
[1753928325041,0.48708473,3845.0,3841.9,0.001]
[1753928325246,0.51959532,3844.9,3841.9,0.001]
[1753928325443,0.48708473,3844.8,3841.9,0.001]
[1753928325614,0.51959701,3844.7,3841.9,0.001]
[1753928325823,0.24354266,3844.6,3841.9,0.001]
[1753928326028,0.24354266,3844.5,3841.9,0.001]
[1753928326229,0.24354266,3844.4,3841.9,0.001]
[1753928326461,0.24354266,3844.3,3841.9,0.001]
[1753928326662,30.0,3845.3,3841.9,0.001]
[1753928326858,0.48675056,3845.2,3841.9,0.001]
[1753928327055,3.26114371,3845.9,3841.9,0.001]
[1753928327056,0.24337528,3845.1,3841.9,0.001]
[1753928327250,0.24337528,3845.0,3841.9,0.001]
[1753928327549,0.24337528,3844.9,3841.9,0.001]
[1753928327752,30.0,3845.7,3841.9,0.001]
[1753928327965,0.48665316,3845.6,3841.9,0.001]
[1753928328251,0.48665316,3845.5,3841.9,0.001]
[1753928328543,0.24332652,3845.4,3841.9,0.001]
[1753928328746,0.24332652,3845.3,3841.9,0.001]
[1753928328951,0.24333658,3845.2,3841.9,0.001]
[1753928329150,0.24333658,3845.1,3841.9,0.001]
[1753928329326,0.24333658,3845.0,3841.9,0.001]
[1753928329659,0.24333658,3844.9,3841.9,0.001]
[1753928329855,30.0,3845.9,3841.9,0.001]
[1753928330039,30.0,3845.7,3841.9,0.001]
[1753928330242,0.48668915,3845.6,3841.9,0.001]
[1753928330440,0.48668915,3845.5,3841.9,0.001]
[1753928330641,0.24334465,3845.4,3841.9,0.001]
[1753928330842,0.24334465,3845.3,3841.9,0.001]
[1753928331024,0.24334465,3845.2,3841.9,0.001]
[1753928331224,0.24334465,3845.1,3842.0,4.25]
[1753928331432,2.32457145,3846.0,3842.0,4.25]
[1753928331753,0.48668174,3845.9,3842.0,4.25]
[1753928332083,0.51918473,3845.8,3842.0,4.25]
[1753928332257,0.48668174,3845.7,3842.0,4.25]
[1753928332461,0.51918642,3845.6,3842.0,4.25]
[1753928332679,0.48668174,3845.5,3842.0,4.25]
[1753928332832,0.51918811,3845.4,3842.0,4.25]
[1753928333031,0.24334087,3845.3,3842.0,4.25]
[1753928333267,0.27584893,3845.2,3842.0,4.25]
[1753928333470,0.24334087,3845.1,3842.0,4.25]
[1753928333772,0.24334087,3845.0,3842.0,4.25]
[1753928333973,0.24334087,3844.9,3842.0,4.25]
[1753928334158,0.24334087,3844.8,3842.0,4.25]
[1753928334360,30.0,3845.8,3842.0,4.25]
[1753928334560,30.0,3845.6,3842.0,4.25]
[1753928334760,0.48676505,3845.5,3842.0,4.25]
[1753928334948,0.24338245,3845.4,3842.0,4.25]
[1753928335150,0.27588966,3845.3,3842.1,4.25]
[1753928335363,0.24338245,3845.2,3842.1,4.25]
[1753928335562,0.0325089,3845.1,3841.9,4.251]
[1753928335736,0.27589135,3845.1,3841.9,4.251]
[1753928335937,0.24338245,3845.0,3841.9,4.251]
[1753928336138,30.0,3845.8,3841.9,4.251]
[1753928336333,30.0,3845.6,3841.9,4.251]
[1753928336576,0.4867654,3845.5,3841.9,4.251]
[1753928336782,0.4867654,3845.4,3841.9,4.251]
[1753928336950,0.2433827,3845.3,3841.9,4.251]
[1753928337134,0.2433827,3845.2,3841.9,4.251]
[1753928337342,0.2433827,3845.1,3841.9,4.251]
[1753928337558,0.2433827,3845.0,3841.9,4.251]
[1753928337770,0.2433827,3844.9,3841.9,4.251]
[1753928337953,30.0,3845.6,3841.9,4.251]
[1753928338137,0.48682711,3845.5,3841.9,4.251]
[1753928338334,0.48682711,3845.4,3841.9,4.251]
[1753928338570,0.48682711,3845.3,3841.9,4.251]
[1753928338770,0.24341361,3845.2,3841.9,4.251]
[1753928338947,0.24341361,3845.1,3841.9,4.251]
[1753928339149,0.24341361,3845.0,3841.9,4.251]
[1753928339338,0.24341361,3844.9,3841.9,4.251]
[1753928339542,0.24341361,3844.8,3841.9,4.251]
[1753928339736,30.0,3845.7,3841.9,4.251]
[1753928339940,0.48699372,3845.6,3841.9,4.251]
[1753928340168,0.51949924,3845.5,3841.9,4.251]
[1753928340344,0.48699372,3845.4,3842.0,0.37781494]
[1753928340551,0.24349686,3845.3,3842.0,0.37781494]
[1753928340750,2.32457145,3845.9,3842.0,0.37781494]
[1753928340751,0.24349686,3845.2,3842.0,0.37781494]
[1753928340955,2.32457145,3846.2,3842.0,0.37781494]
[1753928341155,0.48701366,3846.1,3842.1,4.25]
[1753928341385,2.32457145,3846.2,3842.1,4.25]
[1753928341386,0.48701366,3846.0,3842.1,4.25]
[1753928341680,0.48701366,3845.9,3842.1,4.25]
[1753928341882,0.48701366,3845.8,3842.2,0.37781494]
[1753928342043,0.24350683,3845.7,3842.2,0.37781494]
[1753928342244,0.24350683,3845.6,3842.2,0.37781494]
[1753928342457,0.002,3846.4,3842.2,0.37781494]
[1753928342458,0.27601235,3845.5,3842.2,0.37781494]
[1753928342682,0.24350683,3845.4,3842.2,0.37781494]
[1753928342883,0.03250721,3845.3,3842.3,11.41]
[1753928343087,0.24355661,3845.3,3842.3,11.41]
[1753928343378,0.27608044,3845.2,3842.3,11.41]
[1753928343548,0.03250806,3845.2,3842.3,11.41]
[1753928343750,0.51964978,3846.3,3842.3,11.41]
[1753928343950,0.48715102,3846.2,3842.4,4.25]
[1753928344282,0.51965147,3846.1,3842.4,4.25]
[1753928344614,0.48715102,3846.0,3842.4,4.25]
[1753928344886,0.51965316,3845.9,3842.4,4.25]
[1753928345180,0.48715102,3845.8,3842.4,4.25]
[1753928345480,0.51965485,3845.7,3842.4,4.25]
[1753928345680,0.24357551,3845.6,3842.4,4.25]
[1753928345875,0.27608103,3845.5,3842.4,4.25]
[1753928346075,0.24357551,3845.4,3842.5,4.25]
[1753928346372,0.27608272,3845.3,3842.5,4.25]
[1753928346577,0.24357551,3845.2,3842.5,4.25]
[1753928346876,0.0325089,3845.1,3842.5,4.25]
[1753928347084,0.27609717,3845.1,3842.5,4.25]
[1753928347276,0.0325089,3845.1,3842.5,4.25]
[1753928347581,30.0,3846.2,3842.5,4.25]
[1753928347769,0.51969103,3846.1,3842.5,4.25]
[1753928347970,0.48719058,3846.0,3842.5,4.25]
[1753928348289,0.48719058,3845.9,3842.5,4.25]
[1753928348490,0.48719058,3845.8,3842.5,4.25]
[1753928348677,0.24359529,3845.7,3842.5,4.25]
[1753928348988,0.24359529,3845.6,3842.5,4.25]
[1753928349189,0.24359529,3845.5,3842.5,4.25]
[1753928349376,0.24359529,3845.4,3842.5,4.25]
[1753928349575,30.0,3846.3,3842.5,4.25]
[1753928349880,0.48707128,3846.2,3842.6,4.25]
[1753928350190,0.48707128,3846.1,3842.6,4.25]
[1753928350377,0.48707128,3846.0,3842.6,4.25]
[1753928350577,0.48707128,3845.9,3842.6,4.25]
[1753928350779,0.48707128,3845.8,3842.6,4.25]
[1753928350980,0.24353564,3845.7,3842.6,4.25]
[1753928351179,0.24353564,3845.6,3842.6,4.25]
[1753928351380,0.12989508,3846.4,3842.6,4.62781494]
[1753928351673,0.24345625,3846.3,3842.7,0.37781494]
[1753928351988,0.4869125,3846.2,3842.7,0.37781494]
[1753928352150,0.24345625,3846.1,3842.7,0.37781494]
[1753928352466,0.12989508,3846.4,3842.7,0.37781494]
[1753928352467,0.24345625,3846.0,3842.7,0.37781494]
[1753928352791,0.24345625,3845.9,3842.7,0.37781494]
[1753928352988,0.03250299,3845.8,3842.6,4.25]
[1753928353193,0.27589356,3846.3,3842.6,4.25]
[1753928353388,0.2433948,3846.2,3842.6,4.25]
[1753928353689,0.27589525,3846.1,3842.7,4.25]
[1753928353896,0.2433948,3846.0,3842.7,4.25]
[1753928354057,0.03250214,3845.9,3842.7,4.25]
[1753928354998,0.03250299,3845.8,3842.7,4.25]
[1753928355765,0.24333127,3845.7,3842.7,4.25]
[1753928356110,0.27583595,3845.6,3842.7,4.25]
[1753928356288,0.03250468,3845.6,3842.7,4.25]
[1753928356462,0.27591867,3846.1,3842.7,4.25]
[1753928356658,0.48683644,3846.0,3842.7,4.25]
[1753928356858,0.24341822,3845.9,3842.7,4.25]
[1753928357055,0.27592121,3845.8,3842.7,4.25]
[1753928357258,0.24341822,3845.7,3842.7,4.25]
[1753928357495,0.2759229,3845.6,3842.7,4.25]
[1753928357689,0.24341822,3845.5,3842.7,4.25]
[1753928357882,0.03250637,3845.4,3842.8,4.25]
[1753928358058,0.27592459,3845.4,3842.8,4.25]
[1753928358260,0.03250637,3845.4,3842.8,4.25]
[1753928358460,0.27595158,3846.1,3842.8,4.25]
[1753928358662,0.48690226,3846.0,3842.8,4.25]
[1753928358961,0.5194044,3845.9,3842.8,4.25]
[1753928359162,0.24345113,3845.8,3842.8,4.25]
[1753928359361,0.24345113,3845.7,3842.8,4.25]
[1753928359561,0.24345113,3845.6,3842.8,4.25]
[1753928359798,0.24345113,3845.5,3842.8,4.25]
[1753928359972,0.24345113,3845.4,3842.8,4.25]
[1753928360294,0.002,3846.2,3842.8,4.25]
[1753928360597,0.24347409,3846.1,3842.8,4.25]
[1753928360793,0.5194496,3846.0,3842.9,4.25]
[1753928360999,0.4869483,3845.9,3842.9,4.25]
[1753928361201,0.27597708,3845.8,3842.9,4.25]
[1753928361502,0.24347409,3845.7,3842.9,4.25]
[1753928361800,0.27597877,3845.6,3842.9,4.25]
[1753928362000,0.24347409,3845.5,3842.9,4.25]
[1753928362299,0.27598046,3845.4,3842.9,4.25]
[1753928362500,0.03250637,3845.4,3842.9,4.25]
[1753928362698,0.27599341,3846.1,3842.9,4.25]
[1753928362898,0.48698592,3846.0,3842.9,4.25]
[1753928363106,0.51948806,3845.9,3842.9,4.25]
[1753928363307,0.24349296,3845.8,3842.9,4.25]
[1753928363470,0.24349296,3845.7,3842.9,4.25]
[1753928363802,0.24349296,3845.6,3842.9,4.25]
[1753928364001,0.002,3846.2,3842.9,4.25]
[1753928364002,0.24349296,3845.5,3842.9,4.25]
[1753928364191,0.24349296,3845.4,3842.9,4.25]
[1753928364366,0.002,3846.2,3842.9,4.25]
[1753928364567,0.2435505,3846.1,3842.9,4.25]
[1753928364768,0.48710113,3846.0,3842.9,4.25]
[1753928364991,0.48710113,3845.9,3842.9,4.25]
[1753928365194,0.48710113,3845.8,3842.9,4.25]
[1753928365504,0.2435505,3845.7,3843.0,4.25]
[1753928365671,0.2435505,3845.6,3843.0,4.25]
[1753928365873,0.2435505,3845.5,3843.0,4.25]
[1753928366074,0.2435505,3845.4,3843.0,4.25]
[1753928366284,0.002,3846.2,3843.0,4.25]
[1753928366575,0.24359054,3846.1,3843.0,4.25]
[1753928366903,0.48716413,3846.0,3843.0,4.25]
[1753928367133,0.48716413,3845.9,3843.0,4.25]
[1753928367281,0.24357359,3845.8,3843.0,4.25]
[1753928367485,0.24357359,3845.7,3843.0,4.25]
[1753928367697,0.24357359,3845.6,3843.0,4.25]
[1753928367884,0.24357359,3845.5,3843.0,4.25]
[1753928368084,0.002,3846.2,3843.0,4.25]
[1753928368284,0.24361646,3846.1,3843.0,4.25]
[1753928368482,0.51973422,3846.0,3843.0,4.25]
[1753928368690,0.48723292,3845.9,3843.0,4.25]
[1753928368891,0.51973591,3845.8,3843.0,4.25]
[1753928369090,0.24361646,3845.7,3843.0,4.25]
[1753928369419,0.24361646,3845.6,3843.0,4.25]
[1753928369635,0.24361646,3845.5,3843.0,4.25]
[1753928369916,0.24361646,3845.4,3843.0,4.25]
[1753928370212,0.24361646,3845.3,3843.0,4.25]
[1753928370417,0.002,3846.2,3843.0,4.25]
[1753928370614,0.48752086,3846.1,3843.0,4.25]
[1753928370805,0.48752086,3846.0,3843.0,4.25]
[1753928370985,0.48752086,3845.9,3843.0,4.25]
[1753928371192,0.48752086,3845.8,3843.0,4.25]
[1753928371526,0.48752086,3845.7,3843.1,4.25]
[1753928371690,0.24376043,3845.6,3843.1,4.25]
[1753928371886,0.24376043,3845.5,3843.1,4.25]
[1753928372088,0.24376043,3845.4,3843.1,4.25]
[1753928372389,0.24376043,3845.3,3843.1,4.25]
[1753928372592,0.13425869,3846.2,3843.1,4.25]
[1753928372807,0.4875674,3846.1,3843.1,4.25]
[1753928373006,0.4875674,3846.0,3843.1,4.25]
[1753928373189,0.4875674,3845.9,3843.1,4.25]
[1753928373509,0.52007039,3845.8,3843.1,4.25]
[1753928373701,0.4875674,3845.7,3843.1,4.25]
[1753928373901,0.2437837,3845.6,3843.1,4.25]
[1753928374109,0.27628922,3845.5,3843.1,4.25]
[1753928374306,0.2437837,3845.4,3843.1,4.25]
[1753928374483,0.27629091,3845.3,3843.1,4.25]
[1753928374684,0.03250721,3845.3,3843.1,4.25]
[1753928375003,0.24380777,3845.2,3842.3,4.25]
[1753928375205,2.45883014,3846.2,3842.3,4.25]
[1753928375414,0.48764988,3846.1,3842.3,4.25]
[1753928375606,0.48764988,3846.0,3842.3,4.25]
[1753928375801,0.48764988,3845.9,3842.3,4.25]
[1753928376008,0.48764988,3845.8,3842.3,4.25]
[1753928376194,0.48764988,3845.7,3842.3,4.25]
[1753928376397,0.48764988,3845.6,3842.3,4.25]
[1753928376599,0.24382494,3845.5,3842.3,4.25]
[1753928376823,0.24382494,3845.4,3842.3,4.25]
[1753928376987,0.24382494,3845.3,3842.3,4.25]
[1753928377187,0.24382494,3845.2,3842.3,4.25]
[1753928377400,0.24386465,3845.1,3842.3,4.25]
[1753928377597,2.45883014,3846.2,3842.3,4.25]
[1753928377917,0.002,3845.6,3842.3,4.25]
[1753928378112,0.27636901,3845.5,3842.3,4.25]
[1753928378314,0.24386349,3845.4,3842.3,4.25]
[1753928378516,0.2763707,3845.3,3842.3,4.25]
[1753928378723,0.24386349,3845.2,3842.3,4.25]
[1753928378926,0.24386349,3845.1,3842.3,4.25]
[1753928379098,0.24386349,3845.0,3842.3,4.25]
[1753928379422,0.24386349,3844.9,3842.3,4.25]
[1753928379590,0.002,3845.6,3842.3,4.25]
[1753928380116,0.4876966,3845.5,3842.3,4.25]
[1753928380320,0.48770158,3845.4,3842.4,4.25]
[1753928380491,0.002,3845.6,3842.4,4.25]
[1753928380815,0.03250552,3845.5,3842.4,4.25]
[1753928382203,0.4876766,3845.4,3842.4,4.25]
[1753928382383,0.52018381,3845.3,3842.4,4.25]
[1753928382587,0.4876766,3845.2,3842.4,4.25]
[1753928382924,0.5201855,3845.1,3842.4,4.25]
[1753928383130,0.2438383,3845.0,3842.4,4.25]
[1753928383292,0.27634889,3844.9,3842.4,4.25]
[1753928383627,0.2438383,3844.8,3842.4,4.25]
[1753928383826,0.27635058,3844.7,3842.4,4.25]
[1753928384132,0.03251228,3844.7,3842.5,4.25]
[1753928384426,0.2762682,3845.5,3842.5,4.25]
[1753928384593,0.2437587,3845.4,3842.6,4.25]
[1753928384790,0.52002859,3845.3,3842.6,4.25]
[1753928385119,0.48752138,3845.2,3842.6,4.25]
[1753928385326,0.52002754,3845.1,3842.6,4.25]
[1753928385527,0.2437587,3845.0,3842.6,4.25]
[1753928385730,0.27626929,3844.9,3842.6,4.25]
[1753928385942,0.2437587,3844.8,3842.6,4.25]
[1753928386232,0.27627098,3844.7,3842.6,4.25]
[1753928386392,0.03251228,3844.7,3842.3,4.25]
[1753928386591,0.27623699,3845.5,3842.3,4.25]
[1753928386886,0.24373139,3845.4,3842.4,4.25]
[1753928387128,0.51997007,3845.3,3842.4,4.25]
[1753928387324,0.48746286,3845.2,3842.4,4.25]
[1753928387531,0.27624029,3845.1,3842.4,4.25]
[1753928387733,0.24373139,3845.0,3842.4,4.25]
[1753928387931,0.27624198,3844.9,3842.4,4.25]
[1753928388110,0.24373139,3844.8,3842.4,4.25]
[1753928388312,0.03251228,3844.7,3842.4,4.25]
[1753928388639,0.48734892,3845.5,3842.5,4.25]
[1753928388935,0.48734892,3845.4,3842.3,4.25]
[1753928389098,0.48734892,3845.3,3842.3,4.25]
[1753928389299,0.48734892,3845.2,3842.3,4.25]
[1753928389500,0.24367446,3845.1,3842.3,4.25]
[1753928389713,0.24367446,3845.0,3842.3,4.25]
[1753928389908,0.24367446,3844.9,3842.3,4.25]
[1753928390143,0.1347522,3845.6,3842.3,4.62781494]
[1753928390350,0.48728791,3845.5,3842.3,4.62781494]
[1753928390548,0.48728791,3845.4,3842.3,4.62781494]
[1753928390849,0.48728791,3845.3,3842.3,4.62781494]
[1753928391050,0.24364391,3845.2,3842.3,4.62781494]
[1753928391219,0.24364391,3845.1,3842.3,4.62781494]
[1753928391420,0.24364391,3845.0,3842.3,4.62781494]
[1753928391644,0.24364391,3844.9,3842.3,4.62781494]
[1753928391955,0.1347522,3845.6,3842.3,4.62781494]
[1753928392162,0.487258,3845.5,3842.4,4.25]
[1753928392466,0.487258,3845.4,3842.4,4.25]
[1753928392666,0.487258,3845.3,3842.4,4.25]
[1753928392868,0.243629,3845.2,3842.4,4.25]
[1753928393068,0.243629,3845.1,3842.4,4.25]
[1753928393217,0.243629,3845.0,3842.4,4.25]
[1753928393417,0.1347522,3845.6,3842.4,4.25]
[1753928393649,0.48725745,3845.5,3842.4,4.25]
[1753928393858,0.48725745,3845.4,3842.4,4.25]
[1753928394032,0.24362877,3845.3,3842.4,4.25]
[1753928394349,0.27613683,3845.2,3842.4,4.25]
[1753928394541,0.24362877,3845.1,3842.4,4.25]
[1753928394742,0.27613852,3845.0,3842.4,4.25]
[1753928394920,0.24362877,3844.9,3842.4,4.25]
[1753928395123,0.03251144,3844.8,3842.2,4.25]
[1753928395321,0.27616439,3844.8,3842.2,4.25]
[1753928395562,0.03251144,3844.8,3842.2,4.25]
[1753928395863,0.51981226,3845.5,3842.2,4.25]
[1753928396043,0.48730845,3845.4,3842.2,4.25]
[1753928396243,0.48730845,3845.3,3842.2,4.25]
[1753928396444,0.48730845,3845.2,3842.2,4.25]
[1753928396634,0.24365508,3845.1,3842.2,4.25]
[1753928396833,0.24365508,3845.0,3842.2,4.25]
[1753928397049,0.24365508,3844.9,3842.2,4.25]
[1753928397271,0.24365508,3844.8,3842.2,4.25]
[1753928397553,0.24365508,3844.7,3842.2,4.25]
[1753928397872,0.1347522,3845.6,3842.2,4.25]
[1753928398049,0.4873456,3845.5,3842.2,4.25]
[1753928398346,0.4873456,3845.4,3842.2,4.25]
[1753928398548,0.4873456,3845.3,3842.2,4.25]
[1753928398742,0.4873456,3845.2,3842.2,4.25]
[1753928398949,0.4873456,3845.1,3842.2,4.25]
[1753928399137,0.4873456,3845.0,3842.2,4.25]
[1753928399337,0.24367287,3844.9,3842.2,4.25]
[1753928399550,0.24367287,3844.8,3842.2,4.25]
[1753928399749,0.24367287,3844.7,3842.2,4.25]
[1753928399963,0.24367287,3844.6,3842.2,4.25]
[1753928400172,0.1347522,3845.6,3842.2,4.25]
[1753928400468,0.002,3844.8,3842.2,4.25]
[1753928400626,0.2436864,3844.7,3842.2,4.25]
[1753928400823,0.2436864,3844.6,3842.2,4.25]
[1753928401175,0.2436864,3844.5,3842.2,4.25]
[1753928401351,0.03251482,3844.4,3842.2,4.25]
[1753928402552,0.03251567,3844.3,3842.2,4.25]
[1753928402752,0.24369348,3844.6,3842.2,4.25]
[1753928402952,0.24369348,3844.5,3842.2,4.25]
[1753928403264,0.002,3844.8,3842.2,4.25]
[1753928403465,0.24370654,3844.7,3842.2,4.25]
[1753928403762,0.002,3844.8,3842.2,4.25]
[1753928403763,0.24370654,3844.6,3842.2,4.25]
[1753928403962,0.13598643,3844.8,3842.2,4.25]
[1753928404164,0.24370662,3844.7,3842.2,4.25]
[1753928404364,0.24370662,3844.6,3842.2,4.25]
[1753928404569,0.24370662,3844.5,3842.2,4.25]
[1753928404782,0.002,3844.8,3842.2,4.25]
[1753928404986,0.24373616,3844.7,3842.3,0.37781494]
[1753928405188,0.24373616,3844.6,3842.3,0.37781494]
[1753928405353,0.002,3844.8,3842.3,0.37781494]
[1753928405555,0.24375839,3844.7,3842.3,0.37781494]
[1753928405753,0.24375839,3844.6,3842.3,0.37781494]
[1753928405965,0.002,3844.8,3842.3,0.37781494]
[1753928406166,0.24375726,3844.7,3842.3,0.37781494]
[1753928406366,0.002,3844.8,3842.3,0.37781494]
[1753928406567,0.24380035,3844.7,3842.4,4.25]
[1753928406767,0.002,3844.8,3842.4,4.25]
[1753928407859,0.002,3844.8,3842.4,4.62781494]
[1753928409870,0.002,3844.8,3842.5,4.25]
[1753928413967,0.002,3844.8,3842.4,0.37781494]
[1753928413968,0.002,3844.8,3842.6,4.62781494]
[1753928417008,0.002,3844.8,3842.6,4.25]
[1753928417386,0.002,3844.8,3842.6,4.62781494]
[1753928417811,0.002,3844.8,3842.7,0.37781494]
[1753928418020,0.002,3845.2,3842.7,0.37781494]
[1753928418815,0.002,3845.2,3842.8,4.25]
[1753928419000,0.002,3845.2,3842.8,4.62781494]
[1753928419198,0.002,3845.2,3842.9,4.62781494]
[1753928419903,0.002,3845.6,3843.0,4.25]
[1753928420210,0.002,3845.6,3843.1,4.62781494]
[1753928420989,0.002,3845.6,3843.2,4.25]
[1753928421185,0.002,3845.6,3843.3,0.37781494]
[1753928423285,0.002,3846.4,3843.3,0.37781494]
[1753928423505,0.002,3846.4,3843.4,11.41]
[1753928423707,0.002,3846.4,3843.5,11.78781494]
[1753928423892,0.002,3846.4,3843.6,11.41]
[1753928424087,0.002,3846.4,3843.7,0.37781494]
[1753928424312,0.002,3846.4,3843.8,4.25]
[1753928424513,0.002,3846.4,3843.9,4.25]
[1753928425597,0.002,3846.4,3844.0,4.25]
[1753928426717,0.002,3846.4,3844.1,4.25]
[1753928427221,0.002,3846.4,3844.1,4.62781494]
[1753928427726,0.002,3846.4,3844.2,4.25]
[1753928428288,0.002,3846.4,3844.3,4.25]
[1753928429021,0.002,3846.4,3844.4,4.25]
[1753928429221,0.002,3846.4,3844.1,0.37781494]
[1753928429417,0.002,3846.4,3842.7,4.25]
[1753928429618,0.002,3846.4,3843.0,0.37781494]
[1753928430209,0.002,3846.8,3843.1,4.25]
[1753928430398,0.002,3846.8,3843.2,4.25]
[1753928430604,0.002,3846.8,3843.3,4.25]
[1753928430793,0.002,3846.8,3843.4,0.37781494]
[1753928430990,0.002,3846.8,3843.5,4.25]
[1753928431195,0.002,3846.8,3843.6,4.62781494]
[1753928432097,0.002,3846.8,3843.7,4.25]
[1753928432297,0.002,3847.1,3843.8,0.37781494]
[1753928435529,0.002,3847.1,3843.9,7.0]
[1753928435823,0.002,3847.1,3844.0,0.37781494]
[1753928437736,0.002,3847.1,3844.0,4.62781494]
[1753928440951,0.03449285,3847.0,3844.0,4.62781494]
[1753928442009,0.002,3847.0,3844.0,4.62781494]